Workbook

Sheet Portada

Sheet ContraPortada

Sheet INDICADORES
D1: SECRETARIA DE EDUCACION DISTRITAL CARTAGENA DE INDIAS
D2: GEDGE02. COMPROMISO DE LA DIRECCIÓN
D3: INFORME DE SEGUIMIENTO
D4: Codigo: GEDGE02-F001 | F4: Versión: 1 | H4: Vigencia: 20/10/2009
B5: INDICADORES | D5: UBICACIÓN GEOGRÁFICA
E6: META | G6: JUNIO
G7: valor | H7: % | I7: TOTAL
B8: LA ESCUELA COMO EJE INTEGRADOR DE LOS PROCESOS FORMATIVOS | C8: Nodo social humanistico implementado | D8: URBANO | E8: 1 | F8: 1 | G8: 0.25 | H8: 0 | I8: =(H8+H11) -> 0
D11: RURAL
C14: Numero de institucione esducativas oficiales beneficiadas con el nodo social humanistico implementado | D14: URBANO | E14: 5 | F14: 3 | G14: 5 | H14: 1 | I14: 1
D17: RURAL | F17: 2 | G17: 2 | H17: 1
C20: SUB - TOTAL PROYECTO | I20: =+AVERAGE(I8:I19) -> 0.5
B22: ESCUELAS VERDES | C22: Proyectos ambientales educativos - PRAES ajustados en IEO | D22: URBANO | E22: 5 | F22: 3 | G22: 27 | H22: 1 | I22: =SUM(H22:H27)/2 -> 1
D25: RURAL | F25: 2 | G25: 10 | H25: 1
C28: SUB - TOTAL PROYECTO | I28: =SUM(I22) -> 1
B30: CIUDAD ESCUELA COMPROMISOS DE TODOS Y PARA TODOS | C30: Numero de IEO con el programa escuelas para padres fortalecidos | D30: URBANO | E30: 20 | F30: 12 | G30: 21 | H30: 1 | I30: =(H30+H33)/2 -> 1
D33: RURAL | F33: 8 | G33: 14 | H33: 1
B36: IMPLEMENTACION DE LA CATEDRADE LA PAZ | C36: SUB - TOTAL PROYECTO | I36: =SUM(I30:I35)/1 -> 1
C38: Docentes formados en justicia, reconciliacion y tolerancia | D38: URBANO | E38: 600 | F38: 360 | G38: 0 | H38: =G38/F38 -> 0 | I38: =+AVERAGE(H38:H43) -> 0
D41: RURAL | F41: 240 | G41: 0 | H41: =G41/F41 -> 0
C44: Numero de IEO con la catedra Cartagena en paz implementada | D44: URBANO | E44: 40 | F44: 24 | G44: 1 | H44: =G44/F44 -> 0.04166666667 | I44: =+AVERAGE(H44:H49) -> 0.02083333333
D47: RURAL | F47: 16 | G47: 0 | H47: =G47/F47 -> 0
B50: MEJORES DOCENTES Y DIRECTIVOS DOCENTES | C50: SUB - TOTAL PROYECTO | I50: =+AVERAGE(I38:I49) -> 0.01041666667
C52: Numero de docentes formados en evaluacion por compentencias | D52: URBANO | E52: 625 | F52: 375 | G52: 0 | H52: =G52/F52 -> 0 | I52: =+AVERAGE(H52:H57) -> 0
D55: RURAL | F55: 250 | G55: 0 | H55: =G55/F55 -> 0
C58: Numero de docentes formados en metodologia de investigacion para el mejoramiento de la calidad educativa | D58: URBANO | E58: 300 | F58: 180 | G58: 0 | H58: =G58/F58 -> 0 | I58: =+AVERAGE(H58:H59) -> 0
D59: RURAL | F59: 120 | G59: 0 | H59: 0
C60: Numero de docentes y directivos docentes formados en especializaciones y/o maestrias. | D60: URBANO | E60: 85 | F60: 51 | G60: 0 | H60: 0 | I60: =+AVERAGE(H60:H61) -> 0
D61: RURAL | F61: 34 | G61: 0 | H61: 0
C62: Numero de docentes y directivos docentes cualificado en gestion escolar | D62: URBANO | E62: 120 | F62: 72 | G62: 0 | H62: 0 | I62: =+AVERAGE(H62:H63) -> 0
D63: RURAL | F63: 48 | G63: 0 | H63: 0
C64: Numero de docentes y directivos docentes con experiencias educativas innovadoras para el mejoramiento de la calidad educativa | D64: URBANO | E64: 260 | F64: 156 | G64: 0 | H64: 0 | I64: =+AVERAGE(H64:H65) -> 0
D65: RURAL | F65: 104 | G65: 0 | H65: 0
C66: SUB - TOTAL PROYECTO | I66: =+AVERAGE(I52:I65) -> 0
B68: FORTALECIMIENTO DEL MODELO PEDAGOGICO EN LAS INSTITUCIONES ETNOEDUCATIVAS DEL DISTRITO DE CARTAGENA | C68: Numero de IEO Etnoeducativa con PEI ajustado y actualizado | D68: URBANO | E68: 4 | F68: 0 | G68: 0 | H68: 0 | I68: =+H71 -> 0.75
D71: RURAL | F71: 4 | G71: 3 | H71: =G71/F71 -> 0.75
C74: Numero de IEO que desarrollan la Catedra de estudios Afrocolombianos | D74: RURAL | E74: 12 | F74: 12 | G74: 5 | H74: =+G74/F74 -> 0.4166666667 | I74: =+H74 -> 0.4166666667
D75: URBANO | F75: 0 | G75: 0 | H75: 0
C76: SUB - TOTAL PROYECTO | I76: =SUM(I68:I74)/2 -> 0.5833333333
B78: SABER MAS SABER MEJOR- GESTION ESCOLAR DE INSTITUCIONES EDUCATIVAS OFICIALES | C78: Numero de establecimiento Educativos Oficiales con Indice Sintetico de Calidad Educativa -ISCE en la Media, con nivel al menos igual al ISCE promedio Nacional | D78: URBANO | E78: 9 | F78: 6 | G78: 11 | H78: 1 | I78: =+AVERAGE(H78:H83) -> 0.5
D81: RURAL | F81: 3 | G81: 0 | H81: =G81/F81 -> 0
C84: Numero de establecimientos Educativos Oficiales con grado 11° con desempeños alineados en clasificacion A+, A y B | D84: URBANO | E84: 6 | F84: 4 | G84: 21 | H84: 1 | I84: =+AVERAGE(H84:H85) -> 0.5
D85: RURAL | F85: 2 | G85: 0 | H85: =G85/F85 -> 0
C86: Mejorar componente desempeño (ISCE) Basica primaria | D86: URBANO | E86: 2.56 | F86: 2.56 | G86: 2.42 | H86: =G86/F86 -> 0.9453125 | I86: =+AVERAGE(H86) -> 0.9453125
D87: RURAL
C88: Mejorar componente desempeño (ISCE) Basica secundaria | D88: URBANO | E88: 2.47 | F88: 2.47 | G88: 2.36 | H88: =G88/F88 -> 0.955465587 | I88: =+AVERAGE(H88) -> 0.955465587
D89: RURAL
C90: Mejorar componente desempeño (ISCE) Media | D90: URBANO | E90: 2.61 | F90: 2.61 | G90: 2.39 | H90: =G90/F90 -> 0.9157088123 | I90: =+AVERAGE(H90) -> 0.9157088123
D91: RURAL
C92: Numero de IEO con semilleros de investigacion implementados | D92: URBANO | E92: 40 | F92: 24 | G92: 0 | H92: =+AVERAGE(G92:G93) -> 0 | I92: =+AVERAGE(H92) -> 0
D93: RURAL | F93: 16 | G93: 0
C94: SUB - TOTAL PROYECTO | I94: =SUM(I78:I93)/6 -> 0.6360811499
B96: ACTUALIZACION DE CURRICULOS ESCOLARES | C96: Numero de instituciones educativas con curriculos ajustados a la politica vigente implementado | D96: URBANO | E96: 20 | F96: 12 | G96: 11 | H96: =G96/F96 -> 0.9166666667 | I96: =+AVERAGE(H96:H101) -> 0.4583333333
D99: RURAL | F99: 8 | G99: 0 | H99: =G99/F99 -> 0
C102: Numero de establecimientos educativos oficiales con bajo indice en los indicadores de calidad y eficiencia interna, fortalecidos en la gestion escolar integral. | D102: URBANO | E102: 5 | F102: 3 | G102: 17 | H102: 1 | I102: =+AVERAGE(H102:H103) -> 1
D103: RURAL | F103: 2 | G103: 6 | H103: 1
C104: Numero de IEO con Proyectos educativos resignificados | D104: URBANO | E104: 10 | F104: 8 | G104: 17 | H104: 1 | I104: =+AVERAGE(H104:H105) -> 1
D105: RURAL | F105: 2 | G105: 6 | H105: 1
C106: SUB - TOTAL PROYECTO | I106: =SUM(I96:I105)/3 -> 0.8194444444
B108: INCORPORACIÓN DE LA TECNOLOGÍA EN EL PROCESO DE ENSEÑANZA Y APRENDIZAJE | C108: Número de docentes y directivos docentes formados en uso y apropiación de TICs | D108: URBANO | E108: 1500 | F108: 900 | G108: 26 | H108: =G108/F108 -> 0.02888888889 | I108: =+AVERAGE(H108:H109) -> 0.02777777778
D109: RURAL | F109: 600 | G109: 16 | H109: =G109/F109 -> 0.02666666667
C110: Número de docentes que aplican las TIC en procesos de enseñanza y aprendizajes | D110: URBANO | E110: 90 | F110: 54 | G110: 24 | H110: =G110/F110 -> 0.4444444444 | I110: =+AVERAGE(H110:H111) -> 0.3333333333
D111: RURAL | F111: 36 | G111: 8 | H111: =G111/F111 -> 0.2222222222
C112: SUB - TOTAL PROYECTO | I112: =SUM(I108:I111)/2 -> 0.1805555556
B113: ESCUELAS BILINGÜES | C113: % DE ESTUDIANTES de IEO con jornada extendida bilingüe con nivel minimo "B1" en las pruebas saber 11°, según el MCERL | D113: URBANO | E113: 0.1 | F113: 0.1 | G113: 0.08 | H113: =+G113/F113 -> 0.8 | I113: =+H113 -> 0.8
D116: RURAL
C119: SUB - TOTAL PROYECTO | I119: =SUM(I113:I118)/1 -> 0.8
A122: < | C122: GENERAL POR PROYECTO
C123: LA ESCUELA COMO EJE INTEGRADOR DE LOS PROCESOS FORMATIVOS | E123: =I20 -> 0.5
C124: ESCUELAS VERDES | E124: =I28 -> 1
C125: CIUDAD ESCUELA COMPROMISOS DE TODOS Y PARA TODOS | E125: =I36 -> 1
C126: IMPLEMENTACION DE LA CATEDRA DE LA PAZ | E126: =I50 -> 0.01041666667
C127: 1. Atender necesidades de las IEO en el fortalecimiento y expansión de los proyectos transversales: Proyectos de competencia ciudadana, educación ambiental, Educación sexual y construcción de ciudadanía, cultura, deporte y los proyectos complementarios formulados para atender necesidades de la población estudiantil vulnerable. | E127: =+AVERAGE(E123:E126) -> 0.6276041667
C128: SABER MAS SABER MEJOR - GESTION ESCOLAR DE INSTITUCIONES EDUCATIVAS OFICIALES | E128: =I94 -> 0.6360811499
C129: 2. Atender necesidades diferenciadas en los IEO con bajos e inferiores logros en las pruebas externas y mejorar los aprendizajes de los estudiantes de básica primaria,secundaria y media, a través de la implementación de diferentes estrategias. | E129: =+E128 -> 0.6360811499
C130: ESCUELAS BILINGÜES | E130: =I119 -> 0.8
C131: 3. Atender los estudiantes de grado 11 para las pruebas externas en el idioma ingles | E131: =+E130 -> 0.8
C132: ACTUALIZACION DE CURRICULOS ESCOLARES | E132: =I106 -> 0.8194444444
C133: 4. Atender necesidades diferenciadas de las IEO, relacionadas con las herramientas de la gestión escolar PEI -Autoevaluaciòn y PMI en cada una de sus etapas y procesos para el fortalecimiento académico | E133: =+E132 -> 0.8194444444
C134: FORTALECIMIENTO DEL MODELO PEDAGOGICO EN LAS INSTITUCIONES ETNOEDUCATIVAS DEL DISTRITO DE CARTAGENA | E134: =I76 -> 0.5833333333
C135: 5. Fortalecer las Instituciones etnoeducativas a través de espacios de asistencia técnica, acompañamiento presencial y situado en la consolidación de los PEC y catedra de estudios afrocolombianos en el marco de las normas legales y técnicas vigentes para los grupos étnicos. | E135: =+E134 -> 0.5833333333
C136: MEJORES DOCENTES Y DIRECTIVOS DOCENTES | E136: =I66 -> 0
C137: 6. Garantizar la ejecución, monitoreo y evaluación de las dos fases para la implementaciòn de la politica de formaciòn de docentes , directivos docentes y administrativos | E137: =+E136 -> 0
C138: INCORPORACIÓN DE LA TECNOLOGÍA EN EL PROCESO DE ENSEÑANZA Y APRENDIZAJE | E138: =I112 -> 0.1805555556
C139: 7. Gestionar las acciones necesarias para satisfacer la cualificación de docentes y directivos docentes en uso y apropiación de MTIC, de acuerdo al diagnóstico de necesidades de las IEO. | E139: =+E138 -> 0.1805555556
C140: TOTAL PAM | E140: =+AVERAGE(E127,E129,E131,E133,E135,E137,E139) -> 0.5210026643

Sheet LA ESCUELA COMO EJE INTEGRADOR
E1: SECRETARIA DE EDUCACION DISTRITAL CARTAGENA DE INDIAS
E2: GEDGE02. COMPROMISO DE LA DIRECCIÓN
E3: INFORME DE SEGUIMIENTO
E4: Codigo: GEDGE02-F001 | I4: Versión: 1 | M4: Vigencia: 20/10/2009
B6: FECHA: | C6: Julio 6 de 2018 | F6: PERIODO | G6: Enero - Julio 6 de 2018 | J6: RESPONSABLE: | L6: CECILIA MORALES URSHELA
B7: 1. INDICADORES
B8: Nodo social humanístico implementado | D8: =INDICADORES!C14 -> Numero de institucione esducativas oficiales beneficiadas con el nodo social humanistico implementado
B9: META | C9: REAL | D9: META | E9: REAL | F9: META | G9: REAL | H9: META | I9: REAL | J9: META | K9: REAL | L9: META | M9: REAL | N9: META | O9: REAL
B10: 1 | C10: 0 | D10: 5 | E10: 7
B11: GRAFICAS
B23: 2. ANALISIS
B24: ANALISIS: | D24: 1. La no ejecución del convenio interinstitucional que garantice la implementación del Nodo Social Humanístico con enfasís en danza y música. 2. Se realizó con la gestión de aliados y la articulación de la alianza Fundación Mamonal y aliado internacional (Musik Ubeers).
B25: RECOMENDACIONES PARA LA MEJORA | E25: 1. Establecimiento de un convenio publico - para la implementación de un programas de formacion con enfasis en musica y danzas a fin de fortalecer las manifestaciones artisticas y musicales de niños, niñas y jovenes en 10 I.E.O. 2. Realización Alizanza instersinticional con las cajas de compensación (Comfamiliar y Comfenalco), para el desarrollo de las jornadas escolares complementarias. 3. Revisión, ajuste y actualización del Plan de Asistencia Tecnica a las IEO en las tematicas de educación artistica, recreación y deporte y patrimonio.
B26: ¿Se generan acciones? | D26: Correctivas No. | J26: De mejora No. X | M26: Producto No Conforme | O26: No.

Sheet ESCUELAS VERDES
E1: SECRETARIA DE EDUCACION DISTRITAL CARTAGENA DE INDIAS
E2: GEDGE02. COMPROMISO DE LA DIRECCIÓN
E3: INFORME DE SEGUIMIENTO
E4: Codigo: GEDGE02-F001 | I4: Versión: 1 | M4: Vigencia: 20/10/2009
B6: FECHA: | C6: Julio 6 de 2018 | F6: PERIODO | G6: ='LA ESCUELA COMO EJE INTEGRADOR'!G6:I6 -> Enero - Julio 6 de 2018 | J6: RESPONSABLE: | L6: CECILIA MORALES URSHELA
B7: 1. INDICADORES
B8: =INDICADORES!C22 -> Proyectos ambientales educativos - PRAES ajustados en IEO
B9: META | C9: REAL | D9: META | E9: REAL | F9: META | G9: REAL | H9: META | I9: REAL | J9: META | K9: REAL | L9: META | M9: REAL | N9: META | O9: REAL | P9: META | Q9: REAL
B10: 5 | C10: 37
B11: GRAFICAS
A41: E
B47: 2. ANALISIS
B48: ANALISIS: | D48: 1. En este proyecto se contó con el acompañamiento pedagógico de diez (10) aliados estratégicos para la revisión, ajuste y actualIzacion de los PRAES, alineados al PEI de las IEO
B49: RECOMENDACIONES PARA LA MEJORA | E49: 1. Informe del estado de los PRAES de las IEO, teniendo en cuenta los niveles de: existencia, apropiación, pertinencia y mejoramiento continuo, aliados estrategicos con las IEO focalizadas y avances en la ejecución 2. Revisión, ajuste y actualización del Plan de Asistencia Tecnica a las IEO, con el acompañamiento de aliados estrategicos y de la SED.
B50: ¿Se generan acciones? | D50: Correctivas No. | J50: De mejora No. 1 | L50: X | M50: Producto No Conforme | Q50: No.

Sheet CIUDAD ESCUELA COMPROMISO
D1: SECRETARIA DE EDUCACION DISTRITAL CARTAGENA DE INDIAS
D2: GEDGE02. COMPROMISO DE LA DIRECCIÓN
D3: INFORME DE SEGUIMIENTO
D4: Codigo: GEDGE02-F001 | H4: Versión: 1 | L4: Vigencia: 20/10/2009
A6: FECHA: | B6: Julio 6 De 2017 | E6: PERIODO | F6: Enero - Julio 6 de 2018 | I6: RESPONSABLE: | K6: CECILIA MORALES URSHELA
A7: 1. INDICADORES
A8: Numero de IEO con el programa escuelas para padres fortalecidos
A9: META | B9: REAL | C9: META | D9: REAL | E9: META | F9: REAL | G9: META | H9: REAL | I9: META | J9: REAL | K9: META | L9: REAL | M9: META | N9: REAL | O9: META | P9: REAL
A10: 20 | B10: 35
A11: GRAFICAS
A29: 2. ANALISIS
A30: ANALISIS: | C30: 1. Se realizó acompañamiento a 11 IEO por parte de la Fundación Social, ubicadas en la Unidad Comunera de Gobierno No. 6 del Distrito, para el direccionamiento de estrategias e implementación de la línea de Escuelas de Familia. 2. Se realizó formación y transferencia metodológica con equipos psicosociales y docentes orientadores, mediante alianza estratégica con Fundación ARKA.
A31: RECOMENDACIONES PARA LA MEJORA | D31: 1. Informe del estado de las Escuelas de Padres de las IEO, teniendo en cuenta los niveles de: existencia, apropiación, pertinencia y mejoramiento continuo, aliados estrategicos con las IEO focalizadas y avances en la ejecución. 2. Seguimiento por parte de la SED, a las IEO focalizadas en la línea Escuelas de familia. 3. Seguimiento al desarrollo del DIA E, Dia de la familia 4. Asistencia técnica a las IE focalizadas de acuerdo a la normatividad vigente - Decreto 1286 de abril 27 de 2005.
A32: ¿Se generan acciones? | C32: Correctivas No. | I32: De mejora No. 1 | K32: X | L32: Producto No Conforme | P32: No.

Sheet IMPLEMENTACION CATEDRA PAZ
D1: SECRETARIA DE EDUCACION DISTRITAL CARTAGENA DE INDIAS
D2: GEDGE02. COMPROMISO DE LA DIRECCIÓN
D3: INFORME DE SEGUIMIENTO
D4: Codigo: GEDGE02-F001 | H4: Versión: 1 | L4: Vigencia: 20/10/2009
A6: FECHA: | B6: Julio 6 de 2017 | E6: PERIODO | F6: Enero - Julio 6 de 2018 | I6: RESPONSABLE: | K6: CECILIA MORALES URSHELA
A7: 1. INDICADORES
A8: Docentes formados en justicia, reconciliacion y tolerancia | C8: Numero de IEO con la catedra Cartagena en paz implementada
A9: META | B9: REAL | C9: META | D9: REAL | E9: META | F9: REAL | G9: META | H9: REAL | I9: META | J9: REAL | K9: META | L9: REAL | M9: META | N9: REAL | O9: META | P9: REAL
A10: 600 | B10: 0 | C10: 40 | D10: 1
A11: GRAFICAS
A25: 2. ANALISIS
A26: ANALISIS: | C26: 1. Se ha avanzado en la actualización de manuales de convivencia escolar de las IEO, la emisión de orientaciones para la actualización y fortalecimiento de los Gobiernos Escolares. 3. Se elaboró un plan de Asistencia Técnica para orientar y hacer seguimiento a estas experiencias y/o buenas prácticas.
A27: RECOMENDACIONES PARA LA MEJORA | D27: 1. Gestión del convenio para el fortalecimiento de las competencias ciudadanas en las IEO focalizadas en 2018. 2. Ejecución de la linea de capacitación en procesos de paz, convivencia escolar y derechos humanos, para la vigenca 2018, en el marco del plan de formación de docentes y directivos docentes. 3. Informe del estado de la implementación de la catedra de paz en las IEO, teniendo en cuenta los niveles de: existencia, apropiación, pertinencia y mejoramiento continuo, aliados estrategicos con las IEO focalizadas y avances en la ejecución
A28: ¿Se generan acciones? | C28: Correctivas No. | I28: De mejora No. 1 | K28: X | L28: Producto No Conforme | P28: No.

Sheet MEJORES DOCENTES Y DIRECTIVOS
E1: SECRETARIA DE EDUCACION DISTRITAL CARTAGENA DE INDIAS
E2: GEDGE02. COMPROMISO DE LA DIRECCIÓN
E3: INFORME DE SEGUIMIENTO
E4: Codigo: GEDGE02-F001 | I4: Versión: 1 | M4: Vigencia: 20/10/2009
B6: FECHA: | C6: Julio 6 De 2018 | F6: PERIODO | G6: Enero - Julio 6 de 2018 | J6: RESPONSABLE: | L6: CECILIA MORALES URSHELA
B7: 1. INDICADORES
B8: Numero de docentes formados en evaluacion por competencias | D8: Numero de docentes formados en metodologia de investigacion | F8: Numero de docentes y directivos docentes formados en especializaciones y/o maestrias | H8: Numero de directivos docentes cualificados en gestion escolar | J8: Numero de docentes y directivos docentes con experiencias educativas innovadoras
B9: META | C9: REAL | D9: META | E9: REAL | F9: META | G9: REAL | H9: META | I9: REAL | J9: META | K9: REAL | L9: META | M9: REAL | N9: META | O9: REAL
B10: 625 | C10: 0 | D10: 300 | E10: 0 | F10: 85 | G10: 0 | H10: 120 | I10: 0 | J10: 260 | K10: 0
B11: GRAFICAS
B32: 2. ANALISIS
B33: ANALISIS: | D33: Plan de formación de docentes y directivos docentes elaborado y aprobado en la vigencia 2017, se encuentra en la etapa de contratación. 2. Disponibilidad presupuestal expedida por valor de $2,812,000
B34: RECOMENDACIONES PARA LA MEJORA | E34: Dar continuidad y celeridad al proceso de contratación, a fin de dar inicio en el segundo semeste de 2018
B35: ¿Se generan acciones? | D35: Correctivas No. | F35: X | J35: De mejora No. 1 | M35: Producto No Conforme | O35: No.

Sheet INCORPORACION DE LA TECNOLOGIA
D1: SECRETARIA DE EDUCACION DISTRITAL CARTAGENA DE INDIAS
D2: GEDGE02. COMPROMISO DE LA DIRECCIÓN
D3: INFORME DE SEGUIMIENTO
D4: Codigo: GEDGE02-F001 | H4: Versión: 1 | L4: Vigencia: 20/10/2009
A6: FECHA: | B6: Julio 6 De 2018 | E6: PERIODO | F6: Enero - Julio 6 de 2018 | I6: RESPONSABLE: | K6: CECILIA MORALES URSHELA
A7: 1. INDICADORES
A8: Número de docentes y directivos docentes formados en uso y apropiación de TIC | C8: Número de docentes que aplican las TIC en procesos de enseñanzas y aprendizajes
A9: META | B9: REAL | C9: META | D9: REAL | E9: META | F9: REAL | G9: META | H9: REAL | I9: META | J9: REAL | K9: META | L9: REAL
A10: 1500 | B10: 42 | C10: 90 | D10: 32
A11: 0
A34: 2. ANALISIS
A35: ANALISIS: | C35: 1.Asistencia tecnica a 32 docentes de las IEO focalizdas en ambientes de aprendizajes de ciencias y tecnología. 2. Acompañamiento y seguimiento a 32 docentes en la aplicación de las TIC en el proceso de enseñanza aprendizaje. 2. Asistencia Técnica a 10 docentes de básica primaria de 8 IEO, en lectura y escritura en el marco de biblioteca escuela y asistido por MEN y MinCultura.
A36: RECOMENDACIONES PARA LA MEJORA | D36: 1. Asistencias tecnicas a las IEO focalizadas en el uso y apropiación de las MTIC´s. 2. Informe de la aplicacion de las TIC, tomando como fuente: actas de reuniones y evaluación de las Asistencias Tecnicas, para indentificar el nivel y calidad de la aplicación en el proceso de enseñanza aprendizaje.
A37: ¿Se generan acciones? | C37: Correctivas No. | E37: X | I37: De mejora No. 1 | L37: Producto No Conforme | N37: No.

Sheet FORTALECIMIENTOMODE ETNOEDUC
D1: SECRETARIA DE EDUCACION DISTRITAL CARTAGENA DE INDIAS
D2: GEDGE02. COMPROMISO DE LA DIRECCIÓN
D3: INFORME DE SEGUIMIENTO
D4: Codigo: GEDGE02-F001 | H4: Versión: 1 | L4: Vigencia: 20/10/2009
A5: FECHA: | B5: Julio 6 De 2018 | E5: PERIODO | F5: Enero - Julio 6 de 2018 | I5: RESPONSABLE: | K5: CECILIA MORALES URSHELA
A6: 1. INDICADORES
A7: Numero de IEO Etnoeducatvas con PEI ajustados y actualizados | C7: Numero de IEO que desarrollan la catedra estudios afrocolombianos
A8: META | B8: REAL | C8: META | D8: REAL | E8: META | F8: REAL | G8: META | H8: REAL | I8: META | J8: REAL | K8: META | L8: REAL | M8: META | N8: REAL
A9: 4 | B9: 3 | C9: 12 | D9: 5
A10: GRAFICAS
A26: 2. ANALISIS
A27: ANALISIS: | C27: 1. Asistencias Tecnicas para la revisión, ajuste y actualización de los PEI etnos en las IEO de la UNALDE rural focalizadas. 2. Asistencias Técnicas para el fortalecimiento de la catedra de estudios afrocolombianos en la IEO focalizadas
A28: RECOMENDACIONES PARA LA MEJORA | D28: 1. Se requiere centrar los esfuerzos institucionales en la revisión, ajuste y actualización de los PEI Etnos, en la Unalde Rural y 5 IEO urbanas, teniendo como referente la catedra de estudios afrocolombianos en el area Urbana. 2. Revisión de las buenas practicas en catedras de estudios afrocolombianos en las IEO urbanas focalizadas.
A29: ¿Se generan acciones? | C29: Correctivas No. | I29: De mejora No. 1 | K29: X | L29: Producto No Conforme | N29: No.

Sheet SABER MAS SABER MEJOR
E1: SECRETARIA DE EDUCACION DISTRITAL CARTAGENA DE INDIAS
E2: GEDGE02. COMPROMISO DE LA DIRECCIÓN
E3: INFORME DE SEGUIMIENTO
E4: Codigo: GEDGE02-F001 | I4: Versión: 1 | M4: Vigencia: 20/10/2009
B6: FECHA: | C6: Julio 6 De 2018 | F6: PERIODO | G6: Enero - Julio 6 de 2018 | J6: RESPONSABLE: | L6: CECILIA MORALES URSHELA
B7: 1. INDICADORES
B8: Numero de IEO con ISCE e la media , con nivel al menos igual al ISCE promedio nacional | D8: Numero de IEO con grado 11 con desempeños alieados en la clasificacion A+, A y B | F8: Mejorar componente , desempeño ISCE Basica Primaria | H8: Mejorar componente ISCE Basica Secundaria | J8: Mejorar componente(ISCE) desempeño Media | L8: Numero de IEO con semilleros de investigacion implementados
B9: META | C9: REAL | D9: META | E9: REAL | F9: META | G9: REAL | H9: META | I9: REAL | J9: META | K9: REAL | L9: META | M9: REAL | N9: META | O9: REAL
B10: 9 | C10: 11 | D10: 6 | E10: 21 | F10: 2.56 | G10: 2.42 | H10: 2.47 | I10: 2.36 | J10: 2.61 | K10: 2.39 | L10: 40 | M10: 0 | N10: 0 | O10: 0
B11: GRAFICAS
B34: 2. ANALISIS
B35: ANALISIS: | D35: 1-Solicitud de disponibilidad presupuestal convenio con la Universidad de Cartagena, para el fortalecimiento de las competencias báscias (matematicas, lenguaje). 2. Fortalecimiento de las competencias basicas a traves de la Plataforma EDUCAR en 45 IEO focalizadas. 3. Asistencia Tecnica a los Establecimientos Educativos Oficiales y NO Oficiales, para las orientaciones del DIA E, DIA E DE FAMILIA y SIEMPRE DIA E.
B36: RECOMENDACIONES PARA LA MEJORA | E36: 1- Priorizar las IEO ubicadas en clasificacion D , como criterio de selección para participar en los proyectos de la SED del MEN y aliados. 2- Priorizar las IEO con indice sintetico por debajo de la media, como criterio de selección para participar en los proyectos de la SED del MEN y aliados. 3-Asistencia Tecnica a los Establecimientos Educativos Oficiales y NO Oficiales focalizadas para el acompañamiento en el desarrollo del DIA E, DIA E DE FAMILIA y SIEMPRE DIA E. 4. Acompañamiento para el fortalecimiento de las competencias básicas a 4 IEO focalizadas, a traves de la OIM, en convenio con la Universidad Nacional de Colombia. 5. Formalización de convenio para el acompañamiento a las IEO con oportunidades de mejoras en las áreas de lenguaje y matematicas.
B37: ¿Se generan acciones? | D37: Correctivas No. | J37: De mejora No. 1 | L37: X | M37: Producto No Conforme | O37: No.

Sheet ACTUALIZACION DE CURR ESCOLARES
D1: SECRETARIA DE EDUCACION DISTRITAL CARTAGENA DE INDIAS
D2: GEDGE02. COMPROMISO DE LA DIRECCIÓN
D3: INFORME DE SEGUIMIENTO
D4: Codigo: GEDGE02-F001 | H4: Versión: 1 | L4: Vigencia: 20/10/2009
A6: FECHA: Julio 6 De 2018 | E6: PERIODO: Enero - Julio 6 de 2018 | I6: RESPONSABLE: | K6: CECILIA MORALES URSHELA
A7: 1. INDICADORES
A8: Numero de instituciones educativas con curriculos ajustados | C8: Numero de instituciones educativas fortalecidas en la gestion escolar integral | E8: Numero de instituciones educativas con proyectos educativos institucionales resignificados
A9: META | B9: REAL | C9: META | D9: REAL | E9: META | F9: REAL | G9: META | H9: REAL | I9: META | J9: REAL | K9: META | L9: REAL | M9: META | N9: REAL
A10: 20 | B10: 11 | C10: 5 | D10: 23 | E10: 10 | F10: 23
A11: GRAFICAS
A25: 2. ANALISIS
A26: ANALISIS: | C26: 1. Asistencias Técnicas para la actualización de los planes de estudio en lenguaje y matematicas de 11 IEO, de la Unidad Comunera de Gobierno No. 6, con el acompañamiento de la Fundación Promigas. 2. Acompañamiento pedagogico mensual para el fortalecimiento del sistema de gestión escolar a través de Lideres Siglo XXI- Fundación Nutresa, con la participación de 23 IEO focalizadas (6 rurales y 17 urbanas). 3. Acompañamiento del programa educativo para el fortalecimiento de los Proyectos Educativos Institucionales a través del programa Lideres Siglo XXI - Fundación Nutresa, con la participación de 23 IEO focalizadas.
A27: RECOMENDACIONES PARA LA MEJORA | D27: 1. Asistencia técnica a las 11 IEO de UCG No. 6, a través de acciones de mejora, para la revisión, ajustes y actualización de los planes de estudios de lenguaje, sociales, naturales y matemáticas. 2. Firma del convenio entre la SED y Fundación Social para la formalización del acompañamiento en las diferentes líneas de mejora a las 11 IEO de la UCG No. 6. 3. Las UNALDES realicen el seguimiento para la verificación de la entrega formal a la Dirección de Calidad de las herramientas de gestión escolar en cada anualidad.
A28: ¿Se generan acciones? | C28: Correctivas No. | I28: De mejora No. | K28: X | L28: Producto No Conforme | N28: No.

Sheet ESCUELAS BILINGUES
D1: SECRETARIA DE EDUCACION DISTRITAL CARTAGENA DE INDIAS
D2: GEDGE02. COMPROMISO DE LA DIRECCIÓN
D3: INFORME DE SEGUIMIENTO
D4: Codigo: GEDGE02-F001 | H4: Versión: 1 | L4: Vigencia: 20/10/2009
A6: FECHA: | B6: Julio 6 de 2018 | E6: PERIODO | F6: Enero - Julio 6 de 2018 | I6: RESPONSABLE: | K6: CECILIA MORALES URSHELA
A7: 1. INDICADORES
A8: % de estudiantes de IEO con jornada extendida bilingüe con nivel minimo "B1" en las pruebas Saber 11°, según el MCERL
A9: META | B9: REAL | C9: META | D9: REAL | E9: META | F9: REAL | G9: META | H9: REAL | I9: META | J9: REAL | K9: META | L9: REAL | M9: META | N9: REAL | O9: META | P9: REAL | Q9: META | R9: REAL
A10: 0.1 | B10: 0.08
A11: GRAFICAS
A24: 2. ANALISIS
A25: ANALISIS: | C25: 1. Gestión interinstitucional para el acompañamiento pedagogico a estudiantes en el idioma ingles de las IEO.
A26: RECOMENDACIONES PARA LA MEJORA | D26: 1. Alianzas estrategicas con entidades especializadas en enseñanza del idioma inglés para que acompañen pedagogicamente a estudiantes de grado 10° y 11°, que permitan alcanzar niveles satisfactorios en la prueba Saber 11°. 2. Inmersiones para docentes en paises angloparlantes, permitiendo una mejora en las competencias lingüisticas de los docentes articipantes. 3. Olimpiadas Intercolegiales Bilingüe para docentes de inglés de las IEO del Distrito focalizadas en el proyecto.
A27: ¿Se generan acciones? | C27: Correctivas No. | I27: De mejora No. | K27: X | L27: Producto No Conforme | R27: No.

Sheet RESUMEN POR PROYECTOS
D1: SECRETARIA DE EDUCACION DISTRITAL CARTAGENA DE INDIAS
D2: GEDGE02. COMPROMISO DE LA DIRECCIÓN
D3: INFORME DE SEGUIMIENTO
D4: Codigo: GEDGE02-F001 | H4: Versión: 1 | L4: Vigencia: 20/10/2009
A6: FECHA: | B6: Julio 6 de 2017 | E6: PERIODO | F6: Enero - Julio 6 de 2018 | I6: RESPONSABLE: | K6: CECILIA MORALES URSHELA
A7: 1. INDICADORES
A8: LA ESCUELA COMO EJE INTEGRADOR | C8: ESCUELAS VERDES | E8: CIUDAD ESCUELA COMPROMISO DE TODOS | G8: IMPLEMENTACION DE LA CATEDRA DE PAZ | I8: MEJORES DOCENTES Y DIRECTIVOS DOCENTES | K8: FORTALECIMIENTO DEL MODELO PEDAGOGICO ETNOEDUCATIVO | M8: SABER MAS SABER MEJOR | O8: ACTUALIZACION DE CURRICULOS ESCOLARES | Q8: INCORPORACION DE LA TECNOLOGIA EN EL PROCESO DE ENSEÑANZA APRENDIZAJE | S8: ESCUELAS BILINGUES
A9: META | B9: REAL | C9: META | D9: REAL | E9: META | F9: REAL | G9: META | H9: REAL | I9: META | J9: REAL | K9: META | L9: REAL | M9: META | N9: REAL | O9: META | P9: REAL | Q9: META | R9: REAL | S9: META | T9: REAL
A10: 1 | B10: =+INDICADORES!E123 -> 0.5 | C10: 1 | D10: =+INDICADORES!E124 -> 1 | E10: 1 | F10: =+INDICADORES!E125 -> 1 | G10: 1 | H10: =+INDICADORES!E126 -> 0.01041666667 | I10: 1 | J10: =+INDICADORES!E136 -> 0 | K10: 1 | L10: =+INDICADORES!E134 -> 0.5833333333 | M10: 1 | N10: =+INDICADORES!E128 -> 0.6360811499 | O10: 1 | P10: =+INDICADORES!E132 -> 0.8194444444 | Q10: 1 | R10: =+INDICADORES!E138 -> 0.1805555556 | S10: 1 | T10: =+INDICADORES!E130 -> 0.8
A52: 2. ANALISIS
A53: ANALISIS: | C53: 1. Se dio continuidad a la ejecucion diez proyectos, en el marco del programa La Calidad Dignifica, establecidos en el Plan de Desarrollo "PRIMERO LA GENTE 2016 - 2019", teniendo en cuenta la linea base producto y la meta producto. Cabe resaltar el acompañamiento del Ministerio de Educacion Nacional, ICFES, aliados estrategicos, contratistas y líderes de proyecto. Para la focalización de las IEO, los criterios de selección fueron: clasificacion D e indice sintetico por debajo de la media nacional, para participar en los proyectos de la SED del MEN y aliados.
A54: RECOMENDACIONES PARA LA MEJORA | D54: 1. Revisar las asignaciones presupuestales de cada proyecto y ejecutar un plan de mejoramiento, teniendo en cuenta las recomendaciones establecidas.
A55: ¿Se generan acciones? | C55: Correctivas No. | I55: De mejora No. X | L55: Producto No Conforme | R55: No.

Sheet PAM - JUL 2018
D1: SECRETARIA DE EDUCACION DISTRITAL CARTAGENA DE INDIAS
D2: GEDGE02. COMPROMISO DE LA DIRECCIÓN
D3: INFORME DE SEGUIMIENTO
D4: Codigo: GEDGE02-F001 | H4: Versión: 1 | L4: Vigencia: 20/10/2009
A6: FECHA: | B6: ='ESCUELAS BILINGUES'!B6:D6 -> Julio 6 de 2018 | E6: PERIODO | F6: ='ESCUELAS BILINGUES'!F6:H6 -> Enero - Julio 6 de 2018 | I6: RESPONSABLE: | K6: CECILIA MORALES URSHELA
A7: 1. INDICADORES
A8: CUMPLIMIENTO PAM (Julio 2018)
A9: META | B9: REAL | C9: META | D9: REAL | E9: META | F9: REAL | G9: META | H9: REAL | I9: META | J9: REAL | K9: META | L9: REAL | M9: META | N9: REAL
A10: 1 | B10: =+INDICADORES!E140 -> 0.5210026643
A11: GRAFICAS
A26: 2. ANALISIS
A27: ANALISIS: | C27: En los resultados del primer semestre del Plan de Apoyo al Mejoramiento - PAM, en la vigencia 2018, se observa que la meta se cumplió en un 52%, a traves de las asistencias técnicas y seguimiento a las IEO de acuerdo a las oportunidades de mejora con el acompañamiento de la SED, MEN y Aliados Estrategicos. De los 10 proyectos que se ejecutan en la Dirección de Calidad Educativa: los avances de 7 (siete) de estos, se encuentran en un nivel superior al 45 % y Mejores docentes y directivos docentes en 0 %, en el indicador No docentes formados en Justicia, Reconciliación y Tolerancia del proyecto Implementación catedra de paz con 1 % de avance e Incorporación de la tecnología en el proceso de enseñanza aprendizaje con un avance de 18 %.
A28: RECOMENDACIONES PARA LA MEJORA | D28: 1.Revisar el cumplimiento de las metas en cada proyecto, teniendo en cuenta las asistencias técnicas del MEN, SED y aliados. 2. Desarrollar las asistencias tecnicas en los diferentes proyectos que permitan impactar los aprendizajes de los estudiantes y el fortalecimiento de la gestión escolar. 3. Asignación de las alianzas a las IEO, teniendo en cuenta la caracterización y perfil del sector educativo. 4. Revisón, ajuste y actualización de las acciones y focalización de las IEO con los respectivos aliados. 5. En el segundo semestre de 2018, se inicie el Plan de Formación y cualificación de docentes y directivos docentes, lo cual impactará a los indicadores que no alcanzan por estar inmersos en un proceso de cualificación.
A29: ¿Se generan acciones? | C29: Correctivas No. | I29: De mejora No. | K29: X | L29: Producto No Conforme | N29: No.

Sheet Hoja1
